Cogmind - Beta 13 @@@ ROGUE MODE // 2024.04.12 @ 15:00:38 Player: Cherman0 Result: Self-destructed Performance ------------- Evolutions (4) 2000 Regions Visited (7) 1400 Robots Destroyed (59) 295 Value Destroyed (1923) 1923 Prototype IDs (38) 760 Alien Tech Used (0) 0 Bonus (300) 300 TOTAL SCORE: 6678 Bonus ------- Aligned with FarCom 300 Cogmind --------- Core Integrity 850/850 Matter 7/300 Energy 100/100 System Corruption 0% Temperature Cool (0) Movement Walking (170) Ox1 Location -6/Factory Parts ------- > --- POWER (1) -------- (None) > --- PROPULSION (4) --- Potential Leg Potential Leg > --- UTILITY (7) ------ Huge Storage Unit Trap Scanner Improved Signal Interpreter Improved Medium Armor Plating Medium Reactive Plating Hacking Suite > --- WEAPON (3) ------- Improved Datajack Heavy Hammer > --- INVENTORY (25) --- Deuterium Engine Advanced Treads Advanced Treads Advanced Treads Medium Treads Medium Treads Improved Titanium Leg Improved Cooling System Compact Battery (200) High-capacity Matter Pod (0) Core Analyzer Particle Charger Kinecellerator Weapon Cycler Transmission Jammer Improved Light Armor Plating Medium Reactive Plating Medium Reactive Plating Improved Trap Extractor (5/6 Blade) Gauss Cannon Gauss Cannon Gauss Cannon Proton Missile Launcher Rocket Launcher Peak State ------------ > --- POWER ------------ Improved Deuterium Engine > --- PROPULSION ------- Improved Titanium Leg Improved Titanium Leg Potential Leg Potential Leg > --- UTILITY ---------- Coolant Injector Huge Storage Unit Transmission Jammer Medium Reactive Plating Hacking Suite Improved Trap Extractor > --- WEAPON ----------- Advanced Assault Cannon Plasma Flamer > --- INVENTORY -------- Deuterium Engine Deuterium Engine Advanced Treads Advanced Treads Medium Treads Improved Titanium Leg Large Battery High-capacity Matter Pod Trap Scanner Core Analyzer Particle Charger Weapon Cycler Improved Light Armor Plating Medium Reactive Plating Medium Reactive Plating Shield Generator Component Analysis Suite Ion Cannon High-powered Shotgun Enhanced Autogun Rocket Launcher Mini Grenade Launcher Mini Grenade Launcher Improved Datajack Heavy Hammer [Rating: 68] Favorites ----------- Power Light Nuclear Core Engine Improved Deuterium Engine Power Core Light Nuclear Core Propulsion Potential Leg Treads Light Treads Leg Potential Leg Utility Hacking Suite Device Trap Scanner Storage High-capacity Storage Unit Processor Improved Signal Interpreter Hackware Hacking Suite Protection Light Armor Plating Weapon Assault Rifle Energy Gun Particle Gun Energy Cannon Beam Cannon Ballistic Gun Assault Rifle Ballistic Cannon Assault Cannon Launcher Rocket Launcher Special Weapon Plasma Flamer Impact Weapon Heavy Hammer Special Melee Weapon Improved Datajack Build | -11 -10 -10 -10 -9 -8 -7 -6 ------- Run | Yrd Mat Min Exi Min Mat Fac Fac Slots Evolved 8 | . . . . . 4 2 2 Power . | . . . . . . . . Propulsion 2 | . . . . . 2 . . Utility 5 | . . . . . 2 2 1 Weapon 1 | . . . . . . . 1 Parts Attached 94 | . 8 2 3 . 24 56 1 Power 7 | . 1 . . . 3 3 . Engine 6 | . . . . . 3 3 . Core 1 | . 1 . . . . . . Reactor . | . . . . . . . . Propulsion 12 | . 3 . 2 . 4 3 . Treads 4 | . 3 . . . 1 . . Leg 8 | . . . 2 . 3 3 . Wheel . | . . . . . . . . Hover . | . . . . . . . . Flight . | . . . . . . . . Utility 36 | . 3 1 1 . 9 22 . Device 16 | . 1 . . . 5 10 . Storage 4 | . 2 . 1 . . 1 . Processor 2 | . . . . . 1 1 . Hackware 1 | . . . . . 1 . . Protection 13 | . . 1 . . 2 10 . Artifact . | . . . . . . . . Weapon 39 | . 1 1 . . 8 28 1 Energy Gun 1 | . 1 . . . . . . Energy Cannon 7 | . . 1 . . 2 4 . Ballistic Gun 3 | . . . . . . 3 . Ballistic Cannon 8 | . . . . . 3 5 . Launcher 5 | . . . . . 1 4 . Special Weapon 2 | . . . . . 1 1 . Impact Weapon 6 | . . . . . . 6 . Slashing Weapon . | . . . . . . . . Piercing Weapon . | . . . . . . . . Special Melee Weapon 7 | . . . . . 1 5 1 Unidentified Prototypes . | . . . . . . . . Parts Lost 9 | . . . . . 2 7 . Power 3 | . . . . . 1 2 . Propulsion 3 | . . . . . . 3 . Utility 1 | . . . . . 1 . . Weapon 2 | . . . . . . 2 . Highest Loss Streak 3 | . . . . . 1 3 . To Critical Strikes . | . . . . . . . . Average Slot Usage (%) 96 | . 99 100 100 100 94 98 64 Engine 5 | . 8 . . . 6 6 . Core 3 | . 5 14 14 14 2 . . Treads 7 | . 26 28 13 . 2 . . Leg 20 | . 1 . 14 28 28 29 13 Device 11 | . 13 11 . . 9 17 6 Storage 9 | . 14 14 14 14 9 7 6 Hackware 5 | . . . . . 8 7 6 Protection 8 | . . 2 14 14 8 10 13 Energy Gun 1 | . 5 2 . . . . . Energy Cannon 5 | . . 11 14 14 8 2 . Ballistic Gun 6 | . 22 14 14 14 . . . Ballistic Cannon 4 | . . . . . 8 6 . Naked Turns . | . . . . . . . . Heaviest Build 135 | 14 31 33 53 53 66 135 113 Greatest Support 100 | 20 40 40 60 60 100 100 60 Greatest Overweight (x) 2 | . . . . . 1 2 1 Average Overweight (x) . | . . . . . . . 1 Largest Inventory Capacity 25 | 8 15 15 20 20 20 25 25 Average Capacity 19 | 8 12 15 16 20 20 24 25 Most Carried 25 | 6 15 15 16 20 20 25 25 Average Carried 19 | 6 10 14 15 19 19 23 24 Final Capacity 25 | 8 15 15 20 20 20 25 25 Final Carried 25 | 6 15 15 16 20 20 25 24 Class Distribution -------------------- 96% | Mutant 3% | Scavenger-Mutant Dominant Class ---------------- Mutant | -10/Materials Mutant | -10/Mines Mutant | -10/Exiles Mutant | -9/Mines Mutant | -8/Materials Mutant | -7/Factory Mutant | -6/Factory Resources | -11 -10 -10 -10 -9 -8 -7 -6 ----------- Run | Yrd Mat Min Exi Min Mat Fac Fac Matter Collected 2119 | 200 391 38 . . 712 778 . Remotely . | . . . . . . . . Salvage Created 1914 | . 621 80 . . 662 551 . Parts 107 | . 43 4 . . 41 19 . Haulers Intercepted 7 | . 2 . . . 5 . . Recyclers Shooed 1 | . 1 . . . . . . Parts Field Recycled . | . . . . . . . . Retrieved Matter . | . . . . . . . . Parts Self-Destructed . | . . . . . . . . Prevented . | . . . . . . . . Kills | -11 -10 -10 -10 -9 -8 -7 -6 ------- Run | Yrd Mat Min Exi Min Mat Fac Fac Combat Hostiles Destroyed 40 | . 8 2 . . 15 15 . Melee 2 | . . . . . . 2 . Guns 9 | . 8 . . . . 1 . Cannons 18 | . . 1 . . 12 5 . AOE 7 | . . . . . 3 4 . Classes Destroyed 11 | . 5 . . . 5 1 . Worker 1 | . . . . . 1 . . Hauler 7 | . 2 . . . 5 . . Recycler 3 | . 2 . . . . 1 . Operator 2 | . 2 . . . . . . Watcher 6 | . 3 . . . 1 2 . Swarmer 7 | . . . . . 5 2 . Grunt 19 | . 8 2 . . 4 5 . Sentry 6 | . . . . . 3 3 . Specialist 2 | . . . . . 2 . . Hunter 1 | . . . . . 1 . . Programmer 5 | . . . . . . 5 . Best Kill Streak 5 | . 3 1 . . 5 3 . Combat Bots Only 5 | . 2 1 . . 5 2 . Max Kills in Single Turn 2 | . 1 1 . . 2 2 . Gunslinging . | . . . . . . . . Exploded 2 | . . . . . 2 2 . Melee 1 | . . . . . . 1 . Uniques/NPCs Destroyed . | . . . . . . . . Combat | -11 -10 -10 -10 -9 -8 -7 -6 -------- Run | Yrd Mat Min Exi Min Mat Fac Fac Hostile Shots Fired 384 | . 36 9 . . 99 228 12 Missed 120 | . 8 2 . . 39 69 2 Damage Taken 3423 | . 391 88 . . 822 2058 64 Core 351 | . 77 31 . . 77 166 . Absorbed by Shields 61 | . . . . . 61 . . Ignored by Resistances 285 | . . . . . . 255 30 Regen/Repaired (Parts) 101 | . . . . . . 101 . Core Remaining (%) 79 | 100 . . . 56 86 76 . Volleys Fired 166 | . 44 6 . . 56 60 . Largest 2 | . 2 2 . . 2 2 . Hottest 175 | . 85 80 . . 175 148 . Shots Fired 285 | . 87 12 . . 90 96 . Gun 107 | . 87 6 . . . 14 . Cannon 157 | . . 6 . . 86 65 . Launcher 11 | . . . . . 2 9 . Special 10 | . . . . . 2 8 . Kinetic 183 | . 69 6 . . 49 59 . Thermal 91 | . 18 6 . . 39 28 . Explosive 9 | . . . . . 2 7 . Electromagnetic 2 | . . . . . . 2 . Robot Hit Streak 11 | . 7 9 . . 11 9 . Robot Miss Streak 5 | . 3 1 . . 4 5 . Penetration Max . | . . . . . . . . Secondary Targets . | . . . . . . . . Shots Hit Robots 199 | . 54 10 . . 57 77 1 Core Hits 86 | . 32 1 . . 28 25 . Critical Kills 2 | . . 1 . . . 1 . Critical Parts Destroyed 3 | . . . . . . 3 . Critical Strikes 12 | . 1 1 . . 2 8 . Burn 2 | . 1 . . . . 1 . Meltdown 1 | . . 1 . . . . . Blast 5 | . . . . . 2 3 . Smash 4 | . . . . . . 4 . Melee Attacks 25 | . . . . . . 24 1 Impact 24 | . . . . . . 24 . Slashing . | . . . . . . . . Piercing . | . . . . . . . . Sneak Attacks 2 | . . . . . . 1 1 Combat Hostiles . | . . . . . . . . Follow-up Attacks . | . . . . . . . . Damage Inflicted 5137 | . 732 166 . 2 1452 2785 . Guns 916 | . 714 46 . . . 156 . Cannons 2694 | . . 104 . . 1282 1308 . Explosions 764 | . . . . . 92 672 . Melee 580 | . . . . . . 580 . Ramming 102 | . 18 16 . 2 66 . . Kinetic 2533 | . 525 46 . . 831 1131 . Thermal 1158 | . 189 104 . . 463 402 . Explosive 723 | . . . . . 92 631 . Electromagnetic 41 | . . . . . . 41 . Impact 580 | . . . . . . 580 . Slashing . | . . . . . . . . Piercing . | . . . . . . . . Highest Corruption 6 | . . . . . . 6 . Average Corruption 4 | . . . . . . 4 . Corruption Purged . | . . . . . . . . Corruption Blocked . | . . . . . . . . Effects 57 | . . . . . . 57 . Message Errors 14 | . . . . . . 14 . Matter Fused 13 | . . . . . . 13 . Heat Flow Errors 9 | . . . . . . 9 . Energy Discharges 9 | . . . . . . 9 . Parts Rejected 1 | . . . . . . 1 . Data Loss (minor) 5 | . . . . . . 5 . Data Loss (major) 3 | . . . . . . 3 . Misfires 2 | . . . . . . 2 . Weapon Failures 1 | . . . . . . 1 . Overload Shots . | . . . . . . . . Overflow Damage 290 | . . . . . 22 268 . Projectiles 67 | . . . . . 3 64 . Explosions 11 | . . . . . . 11 . Melee 212 | . . . . . 19 193 . Knockbacks 19 | . . . . . 5 14 . Impact 2 | . . . . . . 2 . Kinetic 17 | . . . . . 5 12 . Secondary . | . . . . . . . . Self-Inflicted Damage 36 | . . . . . . 36 . Shots 2 | . . . . . . 2 . Rammed 10 | . 7 3 . . . . . Targets Rammed 17 | . 9 3 . 1 4 . . Kicked 5 | . . . . 1 4 . . Crushed 2 | . 2 . . . . . . Highest Temperature 360 | . 141 114 . . 360 210 . Average Temperature 81 | . 51 54 . . 99 78 . Received Heat Transfer 753 | . 210 51 . . 243 249 . Effects 2 | . . . . . 2 . . Energy Bleed 2 | . . . . . 2 . . Siege Activations . | . . . . . . . . Robots Corrupted . | . . . . . . . . Combat Hostiles . | . . . . . . . . Parts Fried 4 | . . . . . 1 3 . Impact Corruptions 10 | . . . . . 1 9 . Robots Melted 2 | . . 1 . . . 1 . Combat Hostiles 2 | . . 1 . . . 1 . Parts Melted 5 | . . 3 . . . 2 . Heat Transferred 2564 | . 518 222 . . 783 1041 . Parts Sabotaged . | . . . . . . . . Parts Stolen . | . . . . . . . . Parts Stripped . | . . . . . . . . Power Chain Reactions . | . . . . . . . . Alert | -11 -10 -10 -10 -9 -8 -7 -6 ------- Run | Yrd Mat Min Exi Min Mat Fac Fac Peak Influence 309 | . 111 65 . . 173 309 136 Initial 136 | . . 27 . . . 58 136 Average 53 | . 54 34 . . 52 56 128 Maximum Alert Level 1 | . . . . . . 1 . Low Security (%) 97 | 100 100 100 . 100 100 92 100 Level 1 2 | . . . . . . 7 . Level 2 . | . . . . . . . . Level 3 . | . . . . . . . . Level 4 . | . . . . . . . . Level 5 . | . . . . . . . . High Security . | . . . . . . . . Max Security . | . . . . . . . . Squads Dispatched 17 | . 1 . . . 4 12 . Investigation 3 | . . . . . 1 2 . Extermination 6 | . . . . . . 6 . Reinforcement 8 | . 1 . . . 3 4 . Assault . | . . . . . . . . Garrison . | . . . . . . . . Intercept . | . . . . . . . . Searches Triggered . | . . . . . . . . Construction Impeded 1 | . . . . . . 1 . Haulers Reinforced 1 | . . . . . . 1 . Active Scanning Responses . | . . . . . . . . Cargo Convoy Interrupts . | . . . . . . . . Stealth | -11 -10 -10 -10 -9 -8 -7 -6 --------- Run | Yrd Mat Min Exi Min Mat Fac Fac Distress Signals 7 | . 2 . . . 2 3 . Communications Jammed 1 | . . . . . . 1 . Distress Signals 1 | . . . . . . 1 . Times Spotted 80 | . 19 3 . . 28 29 1 Peak Tracking Total 5 | . 3 2 . . 5 4 2 Tactical Retreats 14 | . 2 1 . . 4 7 . Traps | -11 -10 -10 -10 -9 -8 -7 -6 ------- Run | Yrd Mat Min Exi Min Mat Fac Fac Traps Triggered 5 | . 1 . . . . 4 . Indirectly . | . . . . . . . . Trap Hack Attempts 145 | . . . . . 19 121 5 Triggered . | . . . . . . . . Disarmed 2 | . . . . . . 2 . Reprogrammed 12 | . . . . . 2 9 1 Reused 1 | . . . . . . 1 . Traps Extracted 7 | . . . . . . 7 . Installed 2 | . . . . . . 2 . Triggered 1 | . . . . . . 1 . Most Traps Carried 6 | . . . . . . 6 5 Machines | -11 -10 -10 -10 -9 -8 -7 -6 ---------- Run | Yrd Mat Min Exi Min Mat Fac Fac Machines Disabled 5 | . 1 . . . 3 1 . Max in Single Turn 1 | . 1 . . . 1 1 . Machines Repaired . | . . . . . . . . Machines Dismantled . | . . . . . . . . Machines Sabotaged . | . . . . . . . . Overloaded Fab Kills . | . . . . . . . . Hacking | -11 -10 -10 -10 -9 -8 -7 -6 --------- Run | Yrd Mat Min Exi Min Mat Fac Fac Machines Accessed 25 | . 6 . 1 . 11 7 . Terminals 19 | . 5 . . . 10 4 . Fabricators 1 | . . . . . . 1 . Repair Stations 2 | . . . . . . 2 . Recycling Units 1 | . 1 . . . . . . Scanalyzers 1 | . . . . . 1 . . Garrison Access . | . . . . . . . . Total Hacks 67 | . 11 . 1 . 38 17 . Successful 40 | . 6 . 1 . 26 7 . Failed 25 | . 4 . . . 11 10 . Catastrophic 3 | . . . . . 2 1 . Database Lockouts 2 | . 1 . . . 1 . . Manual 28 | . 11 . 1 . 12 4 . Terminals 48 | . 10 . . . 27 11 . Fabricators 2 | . . . . . . 2 . Repair Stations 4 | . . . . . . 4 . Recycling Units 1 | . 1 . . . . . . Scanalyzers 11 | . . . . . 11 . . Garrison Access . | . . . . . . . . Terminal Hacks 19 | . 3 . 1 . 11 4 . Record 1 | . . . . . 1 . . Prototype ID Bank 8 | . 2 . . . 5 1 . Open DSF 1 | . . . . . . 1 . Emergency Access Points 1 | . . . . . 1 . . Unreport Threat 2 | . . . . . 2 . . Locate Traps 3 | . 1 . . . 1 1 . Hauler Manifests 1 | . . . . . 1 . . Zone Layout 1 | . . . . . . 1 . Derelict Proto ID Bank 1 | . . . 1 . . . . Fabricator Hacks . | . . . . . . . . Repair Station Hacks 2 | . . . . . . 2 . Scan Component 1 | . . . . . . 1 . Repair 1 | . . . . . . 1 . Recycling Unit Hacks . | . . . . . . . . Scanalyzer 11 | . . . . . 11 . . Insert Component 5 | . . . . . 5 . . Analyze 6 | . . . . . 6 . . Garrison Access Hacks . | . . . . . . . . Unauthorized Hacks 8 | . 3 . . . 4 1 . Terminals 7 | . 2 . . . 4 1 . Botnet 7 | . 2 . . . 4 1 . Fabricators . | . . . . . . . . Repair Stations . | . . . . . . . . Recycling Units 1 | . 1 . . . . . . Reject 1 | . 1 . . . . . . Scanalyzers . | . . . . . . . . Garrison Access . | . . . . . . . . Data Cores Recovered 1 | . 1 . . . . . . Used . | . . . . . . . . Hacking Detections 21 | . 4 . . . 10 7 . Full Trace Events 4 | . . . . . 2 2 . Feedback Events . | . . . . . . . . Feedback Blocked . | . . . . . . . . Robot Schematics Acquired . | . . . . . . . . Robots Built . | . . . . . . . . Authchips . | . . . . . . . . Time . | . . . . . . . . Total Robot Build Rating . | . . . . . . . . Part Schematics Acquired 5 | . . . . . 5 . . Parts Built . | . . . . . . . . Authchips . | . . . . . . . . Time . | . . . . . . . . Total Part Build Rating . | . . . . . . . . Parts Repaired 1 | . . . . . . 1 . Time 44 | . . . . . . 44 . Parts Recycled . | . . . . . . . . Recycled Matter . | . . . . . . . . Retrieved Matter . | . . . . . . . . Retrieved Components . | . . . . . . . . Parts Scanalyzed 5 | . . . . . 5 . . Part Schematics Acquired 5 | . . . . . 5 . . Parts Damaged . | . . . . . . . . Bothacking | -11 -10 -10 -10 -9 -8 -7 -6 ------------ Run | Yrd Mat Min Exi Min Mat Fac Fac Used RIF Installer . | . . . . . . . . Robots Hacked 1 | . . . . . . . 1 Non-combat 1 | . . . . . . . 1 Combat . | . . . . . . . . Robot Hacks Applied 1 | . . . . . . . 1 parse_system 1 | . . . . . . . 1 Relay Couplers Released . | . . . . . . . . Fabnet Peak Effective % . | . . . . . . . . Robots Rewired . | . . . . . . . . Allies Hacked . | . . . . . . . . Hacks Repelled . | . . . . . . . . Allies | -11 -10 -10 -10 -9 -8 -7 -6 -------- Run | Yrd Mat Min Exi Min Mat Fac Fac Total Allies 5 | . . 3 . 2 . . . Largest Group 5 | . . 3 3 5 . . . Highest-Rated Group 82 | . . 40 40 82 . . . Highest-Rated Ally 31 | . . 16 16 31 . . . Total Orders . | . . . . . . . . Ally Attacks . | . . . . . . . . Total Damage . | . . . . . . . . Kills . | . . . . . . . . Allies Corrupted . | . . . . . . . . Allies Melted . | . . . . . . . . Intel | -11 -10 -10 -10 -9 -8 -7 -6 ------- Run | Yrd Mat Min Exi Min Mat Fac Fac Robot Analysis Total . | . . . . . . . . Derelict Logs Recovered 3 | . . 1 . 2 . . . Drone Launches . | . . . . . . . . Drone Recoveries . | . . . . . . . . Exploration | -11 -10 -10 -10 -9 -8 -7 -6 ------------- Run | Yrd Mat Min Exi Min Mat Fac Fac Turns Passed 9842 | 8 1528 922 392 426 2856 3288 422 Spaces Moved 4603 | 7 784 538 276 463 1154 1137 244 Core . | . . . . . . . . Treads 1382 | . 728 538 116 . . . . Legs 3221 | 7 56 . 160 463 1154 1137 244 Wheels . | . . . . . . . . Hover . | . . . . . . . . Flight . | . . . . . . . . Fastest Speed 90 | 120 120 160 90 90 90 103 170 Average Speed 138 | 120 157 160 119 90 105 166 170 Slowest Speed 250 | 120 160 160 160 90 170 250 170 Overloaded Moves . | . . . . . . . . Propulsion Burnouts . | . . . . . . . . Robots Hopped . | . . . . . . . . Cave-ins Triggered . | . . . . . . . . Exploration Rate (%) 54 | 3 96 98 70 73 70 23 5 Regions Visited 7 Branch Regions 3 Pre-discovered Areas 1 | . . 1 . . . . . Known Exits Taken 2 | . . . . . 1 1 . Unknown Exits Taken 5 | 1 1 1 1 1 . . . Scrap Searched 4 | . . 2 . 2 . . . Spaces Dug 5 | . . . . . . 5 . Terrain Destroyed 70 | . . . . . 34 36 . Melee 5 | . . . . . . 5 . Projectile 23 | . . . . . 15 8 . AOE 42 | . . . . . 19 23 . Terrain Rammed . | . . . . . . . . Walls Destroyed . | . . . . . . . . Machines Disabled . | . . . . . . . . Actions | -11 -10 -10 -10 -9 -8 -7 -6 --------- Run | Yrd Mat Min Exi Min Mat Fac Fac Total 7748 | 6 991 587 338 472 2711 2392 251 Wait 2554 | . 125 32 54 3 1407 933 . Move 4596 | 6 783 537 275 462 1153 1136 244 Hop . | . . . . . . . . Pick Up 81 | . 14 3 3 5 23 33 . Fast Attach 15 | . 1 1 . . 4 9 . Attach 13 | . . . . . 4 8 1 Detach 1 | . . . . . . 1 . Swap 66 | . 7 1 3 . 16 39 . Drop 67 | . 8 4 3 1 25 26 . Fire 166 | . 44 6 . . 56 60 . Melee 25 | . . . . . . 24 1 Ram . | . . . . . . . . Kick 5 | . . . . 1 4 . . Crush 12 | . 9 3 . . . . . Escape Stasis . | . . . . . . . . Rewire . | . . . . . . . . Trap 147 | . . . . . 19 123 5 Miscellaneous . | . . . . . . . . Route ------- -11/Scrapyard -10/Materials (discovered 4 exits: [*Mat x3] / [*Min]) -10/Mines (discovered 3 exits: [*Mat x2] / *Exi) -10/Exiles (discovered 2 exits: [*Min x2]) -9/Mines (discovered 2 exits: *Mat x2) -8/Materials (discovered 2 exits: *Fac x2) -7/Factory (discovered 4 exits: *Fac x2 / *Sto x2) -6/Factory History --------- Turn | Location | Event 1 | -11/Scrapyard | Discovered new exit (range 3) 9 | -11/Scrapyard | Entered Materials 283 | -10/Materials | Discovered new exit (range 14) 306 | -10/Materials | Build established: Mutant 845 | -10/Materials | Discovered new exit (range 12) 929 | -10/Materials | Central database locked down 1170 | -10/Materials | Discovered new exit (range 8) 1443 | -10/Materials | Discovered new exit (range 14) 1537 | -10/Materials | Entered Mines 1624 | -10/Mines | Met a Derelict bent on vengeance 1735 | -10/Mines | Discovered new exit (range 9) 1926 | -10/Mines | Deemed a non-threat by the Exiles lab entrance 1926 | -10/Mines | Discovered new exit (range 5) 1963 | -10/Mines | Discovered new exit (range 12) 2056 | -10/Mines | Learned location of Storage (-7) 2104 | -10/Mines | Assisted by bots powering up and referring to "LRC-V3" 2231 | -10/Mines | Received a Rocket Launcher from a helpful Derelict 2380 | -10/Mines | Found a damaged Exp. Sensor Array with a note attached 2383 | -10/Mines | Found Prototype Device 2459 | -10/Mines | Entered Exiles 2459 | -10/Exiles | Accompanied by 3 allies 2480 | -10/Exiles | Discovered new exit (range 15) 2503 | -10/Exiles | Met 8R-AWN 2525 | -10/Exiles | Met EX-HEX 2571 | -10/Exiles | Met EX-BIN 2594 | -10/Exiles | Aligned with FarCom system 2595 | -10/Exiles | Given EX-Vault access code 2632 | -10/Exiles | Opened EX-Vault 2644 | -10/Exiles | Found Potential Leg 2647 | -10/Exiles | Found Potential Leg 2671 | -10/Exiles | Warned to stay clear of 0b10 Research branches 2681 | -10/Exiles | Exiles lab attacked by MAIN.C 2772 | -10/Exiles | Discovered new exit (range 10) 2851 | -10/Exiles | Left Exiles lab with Potential Leg 2851 | -10/Exiles | Entered Mines 2851 | -9/Mines | Accompanied by 3 allies 2884 | -9/Mines | Found a hidden stash of uninstalled traps 2920 | -9/Mines | Discovered new exit (range 10) 3023 | -9/Mines | Discovered new exit (range 12) 3112 | -9/Mines | Learned Materials garrison access intel 3160 | -9/Mines | A weapon hastily lodged in a ceiling crevice suddenly fell to the ground 3277 | -9/Mines | Entered Materials 3277 | -8/Materials | Evolved 4 slots: Propulsion x2, Utility x2 3278 | -8/Materials | Loaded intel: 1 garrison access location 4199 | -8/Materials | Central database locked down 4809 | -8/Materials | Build established: Scavenger-Mutant 4879 | -8/Materials | Discovered new exit (range 5) 5110 | -8/Materials | Build established: Mutant 5560 | -8/Materials | Discovered new exit (range 12) 5585 | -8/Materials | Identified exit to Factory 6133 | -8/Materials | Entered Factory 6133 | -7/Factory | Evolved 2 slots: Utility x2 6134 | -7/Factory | Identified exit to Storage 6149 | -7/Factory | Identified exit to DSF 6558 | -7/Factory | Discovered new exit (range 14) 7600 | -7/Factory | Repaired Imp. Titanium Leg 9362 | -7/Factory | Discovered new exit (range 11) 9401 | -7/Factory | Identified exit to Factory 9421 | -7/Factory | Entered another Factory area 9421 | -6/Factory | Evolved 2 slots: Utility x1, Weapon x1 9445 | -6/Factory | Lost 3 parts (1p2n) 9843 | -6/Factory | Self-destructed Last Messages --------------- 09420_ Slug penetrates Wall. PARAMETERS=UTILITY+1,WEAPON+1 LOCATION=FACTORY GOAL=ESCAPE 09421_ Receiving FarCom transmissions... 09518_ Attempting to reprogram Stasis Trap. 09522_ Stasis Trap reprogrammed. 09528_ ALERT: Security rotation in progress. 09574_ Connecting with Terminal... 09623_ Sneak attack on U-05 Engineer. 09623_ Jacked U-05 Engineer... >>parse_system Reading system data... New IDs: Structural Scanner 09634_ K-01 Serf cleans the Terminal. 09837_ Penetrated by Slug. 09840_ Slug penetrates Wall. 09840_ Critical hit (Destroy). 09843_ Slug penetrates Wall. Map ----- +----------------------------------------------------+ | ?# ## ### #????^^ #?????? | | ?# ## ### #???? ^ ???????? | | ?# ## ## #????###?????????? | | ?########### ##T #????????????????? | | ???????????# #?# #????????????????? | | ???????????# #?# #????????????????? | | ???????????#+###+########?????????? | | ???????????# #?????????? | | ???????????# """ """ #?????????? | | ?????####### """ """ #?????????? | | ?????# # """ """ #?????????? | | ?????# # #?????????? | | ?????# # """ """ #?????????? | | ?????# + """ """ [ #?????????? | | ?????# # """ """ #?????????? | | ?????# # #?????????? | | ?????# # #?????????? | | ?????# # #?????????? | | ?????# # #?????????? | | ?????# ##############?????????? | | ?????# ###################????? | | ?????# # """"" """"" #????? | | ?????# # """"" """"" #????? | | ?????# ; """ """ #????? | | ?????# # h #????? | | ?????# @# h #????? | | ?????# # ! #????? | | ?????# + = ] #????? | | ?????# ##############+####????? | | ?????# #????????????# #???????? | | ?????# #????????????# #???????? | | ?????# #????????????# #???????? | | ?????# #????????????# #???????? | | ?????# #????????????# ???????? | | ?????# ?????????????# ???????? | | ?????# ?????????????# ???????? | | ?????# ?????????????# ???????? | | ?????# ?????????????# ???????? | | ?????###+##??????????????+#???????? | | ??????????????????????????????????? | | ??????????????????????????????????? | | ??????????????????????????????????? | | ??????????????????????????????????? | | ??????????????????????????????????? | | ??????????????????????????????????? | | ??????????????????????????????????? | | ??????????????????????????????????? | | ??????????????????????????????????? | | ??????????????????????????????????? | | ??????????????????????????????????? | +----------------------------------------------------+ Best States ------------- Heat Dissipation 37 Coolant Potential 65 Energy Generation 16 Energy Capacity 290 Matter Stores 300 Matter Capacity 300 Sight Range 16 Terrain Scan Density 10 Jamming Range 12 Armor Coverage 600 Resistance: KI 30 Evasion (%) 57 Recoil Reduction 2 Particle Charging 15 Offensive Hacking 10 Trap Extractor Capacity 6 Item Schematics ----------------- Plasma Flamer | -8/Materials | Scanalyzed Imp. Titanium Leg | -8/Materials | Scanalyzed Particle Charger | -8/Materials | Scanalyzed Hvy. Ion Engine | -8/Materials | Scanalyzed Rocket Launcher | -8/Materials | Scanalyzed Robot Schematics ------------------ None Fabricated ------------ Nothing Alien Tech Used ----------------- None Achievements -------------- No Signal Challenges ------------ None Game ------ Seed FissionScrapBooster Manual? 0 Play Time 01:59:18 Cumulative 31.2 hours Start 2024.04.12 @ 12:00:02 End 2024.04.12 @ 15:00:38 Sessions 3 Manual Loads 0 Difficulty Rogue Special Mode None Game No. 18 Rogue 18 Adventurer 0 Explorer 0 Win Type - Total 0 Types 0/0/0/0/0/0/0/0/0 Lore% 22 Gallery% 24 Achievement% 22 Wizard Run 0 Options --------- Layout 0 ASCII 0 Keyboard 0 Movement Numpad Keybinds 1 Fullscreen 1 Font 18/SmallcapsGlow Map View 76x50 Zoom Use 0% Tactical HUD 1 Map Filters NONE Filters NONE Steam 1 RUN: 873d1eb1-39c5-4dff-93ab-6f033370c437